lending/lending_fUSD_20250501
["ID","MTS","AMOUNT","RATE_DAILY","PERIOD"]
[359569603,1746130835024,-120618.3969574,0.0002,2]
[359569604,1746130835067,166.78,0.00017385,2]
[359569606,1746130852793,-229.36742245,0.00019999,2]
[359569607,1746130852820,-30.63257755,0.00019999,2]
[359569608,1746130862165,-300.0,0.00019998,2]
[359569609,1746130862195,-1046.28453072,0.00019999,2]
[359569610,1746130862225,-653.71546928,0.00019999,2]
[359569611,1746130870914,-423.20163899,0.00019999,2]
[359569612,1746130870944,-1076.91710827,0.00019999,2]
[359569613,1746130870975,-499.88125274,0.00019999,2]
[359569614,1746130878516,-577.03585553,0.00019999,2]
[359569615,1746130878545,-1076.91710827,0.00019999,2]
[359569616,1746130878571,-346.0470362,0.00019999,2]
[359569617,1746130885648,-730.87007207,0.00019999,2]
[359569618,1746130885676,-1076.91710827,0.00019999,2]
[359569619,1746130885705,-192.21281966,0.00019999,2]
[359569620,1746130893426,-884.70428861,0.00019999,2]
[359569621,1746130893453,-1076.91710827,0.00019999,2]
[359569622,1746130893483,-38.37860312,0.00019999,2]
[359569623,1746130899976,-1038.53850515,0.00019999,2]
[359569624,1746130900004,-961.46149485,0.00019999,2]
[359569625,1746130901893,-115.45561342,0.00019999,2]
[359569626,1746130901920,-1076.91710827,0.00019999,2]
[359569627,1746130901947,-1076.91710827,0.00019999,2]
[359569628,1746130901976,-1076.91710827,0.00019999,2]
[359569629,1746130902005,-1076.91710827,0.00019999,2]
[359569630,1746130902033,-1076.91710827,0.00019999,2]
[359569631,1746130902059,-1076.91710827,0.00019999,2]
[359569632,1746130902086,-1076.91710827,0.00019999,2]
[359569633,1746130902112,-1076.91710827,0.00019999,2]
[359569634,1746130902140,-1076.91710827,0.00019999,2]
[359569635,1746130902168,-1076.91710827,0.00019999,2]
[359569636,1746130902197,-1076.91710827,0.00019999,2]
[359569637,1746130902224,-1076.91710827,0.00019999,2]
[359569638,1746130902250,-1076.91710827,0.00019999,2]
[359569639,1746130902277,-1076.91710827,0.00019999,2]
[359569640,1746130902304,-1076.91710827,0.00019999,2]
[359569641,1746130902330,-1076.91710827,0.00019999,2]
[359569642,1746130902356,-1076.91710827,0.00019999,2]
[359569643,1746130902383,-1076.91710827,0.00019999,2]
[359569644,1746130902409,-1076.91710827,0.00019999,2]
[359569645,1746130902434,-1076.91710827,0.00019999,2]
[359569646,1746130902459,-1076.91710827,0.00019999,2]
[359569647,1746130902488,-1076.91710827,0.00019999,2]
[359569648,1746130902515,-1076.91710827,0.00019999,2]
[359569649,1746130902540,-1076.91710827,0.00019999,2]
[359569650,1746130902567,-1076.91710827,0.00019999,2]
[359569651,1746130902592,-1076.91710827,0.00019999,2]
[359569652,1746130902619,-1076.91710827,0.00019999,2]
[359569653,1746130902645,-1076.91710827,0.00019999,2]
[359569654,1746130902671,-1076.91710827,0.00019999,2]
[359569655,1746130902696,-1076.91710827,0.00019999,2]
[359569656,1746130902721,-1076.91710827,0.00019999,2]
[359569657,1746130902747,-1076.91710827,0.00019999,2]
[359569658,1746130902772,-1036.23357307,0.00019999,2]
[359569659,1746130902798,-1036.23357307,0.00019999,2]
[359569660,1746130902824,-1036.23357307,0.00019999,2]
[359569661,1746130902848,-1036.23357307,0.00019999,2]
[359569662,1746130902874,-1036.23357307,0.00019999,2]
[359569663,1746130902900,-1036.23357307,0.00019999,2]
[359569664,1746130902925,-1036.23357307,0.00019999,2]
[359569665,1746130902951,-1036.23357307,0.00019999,2]
[359569666,1746130902978,-1036.23357307,0.00019999,2]
[359569667,1746130903004,-1036.23357307,0.00019999,2]
[359569668,1746130903030,-1036.23357307,0.00019999,2]
[359569669,1746130903058,-1036.23357307,0.00019999,2]
[359569670,1746130903085,-1036.23357307,0.00019999,2]
[359569671,1746130903112,-1036.23357307,0.00019999,2]
[359569672,1746130903139,-1036.23357307,0.00019999,2]
[359569673,1746130903168,-1036.23357307,0.00019999,2]
[359569674,1746130903195,-1036.23357307,0.00019999,2]
[359569675,1746130903222,-1036.23357307,0.00019999,2]
[359569676,1746130903250,-1036.23357307,0.00019999,2]
[359569677,1746130903277,-1036.23357307,0.00019999,2]
[359569678,1746130903308,-1036.23357307,0.00019999,2]
[359569679,1746130903336,-1036.23357307,0.00019999,2]
[359569680,1746130903362,-1036.23357307,0.00019999,2]
[359569681,1746130903389,-1036.23357307,0.00019999,2]
[359569682,1746130903416,-1036.23357307,0.00019999,2]
[359569683,1746130903442,-1036.23357307,0.00019999,2]
[359569684,1746130903472,-1036.23357307,0.00019999,2]
[359569685,1746130903499,-1036.23357307,0.00019999,2]
[359569686,1746130903527,-1036.23357307,0.00019999,2]
[359569687,1746130903555,-1036.23357307,0.00019999,2]
[359569688,1746130903581,-828.98685846,0.00019999,2]
[359569689,1746130903606,-828.98685846,0.00019999,2]
[359569690,1746130903632,-828.98685846,0.00019999,2]
[359569691,1746130903659,-828.98685846,0.00019999,2]
[359569692,1746130903686,-828.98685846,0.00019999,2]
[359569693,1746130904035,-828.98685846,0.00019999,2]
[359569694,1746130904065,-828.98685846,0.00019999,2]
[359569695,1746130904096,-828.98685846,0.00019999,2]
[359569696,1746130904122,-828.98685846,0.00019999,2]
[359569697,1746130904150,-828.98685846,0.00019999,2]
[359569698,1746130904176,-828.98685846,0.00019999,2]
[359569699,1746130904203,-828.98685846,0.00019999,2]
[359569700,1746130904229,-828.98685846,0.00019999,2]
[359569701,1746130904256,-828.98685846,0.00019999,2]
[359569702,1746130904283,-828.98685846,0.00019999,2]
[359569703,1746130904310,-828.98685846,0.00019999,2]
[359569704,1746130904337,-828.98685846,0.00019999,2]
[359569705,1746130904364,-828.98685846,0.00019999,2]
[359569706,1746130904386,-11414.42627756,0.0002,2]
[359569707,1746130906503,-2000.0,0.0002,2]
[359569708,1746130917249,-2000.0,0.0002,2]
[359569709,1746130924712,-2000.0,0.0002,2]
[359569710,1746130932814,-2000.0,0.00019986,2]
[359569711,1746130938607,-2000.0,0.00019986,2]
[359569712,1746130945239,-2000.0,0.00019986,2]
[359569713,1746130951740,-2000.0,0.00019986,2]
[359569714,1746130958337,-500.0,0.00019985,2]
[359569715,1746130958366,-500.0,0.00019985,2]
[359569716,1746130958393,-500.0,0.00019985,2]
[359569717,1746130958421,-500.0,0.00019985,2]
[359569719,1746130968258,-500.0,0.00019985,2]
[359569720,1746130968287,-500.0,0.00019985,2]
[359569721,1746130968316,-500.0,0.00019985,2]
[359569722,1746130968343,-500.0,0.00019985,2]
[359569723,1746130974649,-500.0,0.00019985,2]
[359569724,1746130974674,-500.0,0.00019985,2]
[359569725,1746130974698,-500.0,0.00019985,2]
[359569726,1746130974722,-500.0,0.00019985,2]
[359569727,1746130980787,-500.0,0.00019985,2]
[359569728,1746130980812,-500.0,0.00019985,2]
[359569729,1746130980838,-500.0,0.00019985,2]
[359569730,1746130980863,-399.42102085,0.00019985,2]
[359569731,1746130980890,-100.57897915,0.00019985,2]
[359569732,1746130990399,-300.0,0.00019984,2]
[359569733,1746130990426,-1.0,0.00019985,2]
[359569734,1746130997395,-590.36732784,0.000199,2]
[359569735,1746130997423,-9.63267216,0.00019985,2]
[359569736,1746131003773,-388.78834869,0.00019985,2]
[359569737,1746131003800,-500.0,0.00019985,2]
[359569738,1746131003825,-500.0,0.00019985,2]
[359569739,1746131003856,-500.0,0.00019985,2]
[359569740,1746131003885,-111.21165131,0.00019985,2]
[359569745,1746131180590,-2000.0,0.0001975,2]
[359569746,1746131200084,-1059.62539888,0.0001975,2]
[359569747,1746131200106,-606.39444881,0.00019858,2]
[359569748,1746131200127,-1200.0,0.00019899,2]
[359569749,1746131200151,-300.0,0.00019899,2]
[359569750,1746131200174,-1008.56110917,0.000199,2]
[359569751,1746131200196,-825.41904314,0.000199,2]
[359569752,1746131207598,-2000.0,0.000199,2]
[359569753,1746131213933,-2000.0,0.000199,2]
[359569754,1746131219150,-494.49575686,0.000199,2]
[359569755,1746131219173,-944.83797166,0.000199,2]
[359569756,1746131219197,-170.17954058,0.000199,2]
[359569757,1746131219220,-390.4867309,0.000199,2]
[359569758,1746131229236,-366.58489783,0.000199,2]
[359569759,1746131229258,-500.0,0.00019973,2]
[359569760,1746131229280,-500.0,0.00019973,2]
[359569761,1746131229300,-553.0106179,0.00019973,2]
[359569762,1746131229322,-80.40448427,0.00019973,2]
[359569763,1746131237576,-419.59551573,0.00019973,2]
[359569764,1746131237599,-500.0,0.00019973,2]
[359569765,1746131237625,-500.0,0.00019973,2]
[359569766,1746131237647,-500.0,0.00019973,2]
[359569767,1746131237669,-80.40448427,0.00019973,2]
[359569769,1746131247069,-84.54137171,0.00019973,2]
[359569770,1746131247090,-157.23737719,0.00019973,2]
[359569771,1746131247111,-503.02969115,0.00019973,2]
[359569772,1746131247138,-5.19155995,0.00019984,2]
[359569774,1746131255882,-494.80844005,0.00019984,2]
[359569775,1746131255908,-500.0,0.00019984,2]
[359569776,1746131255935,-500.0,0.00019984,2]
[359569777,1746131255962,-500.0,0.00019984,2]
[359569778,1746131255988,-5.19155995,0.00019984,2]
[359569779,1746131264279,-494.80844005,0.00019984,2]
[359569780,1746131264306,-324.90951382,0.00019984,2]
[359569781,1746131264332,-500.0,0.00019984,2]
[359569782,1746131264360,-500.0,0.00019984,2]
[359569783,1746131264387,-180.28204613,0.00019984,2]
[359569784,1746131271500,-319.71795387,0.00019984,2]
[359569785,1746131271529,-500.0,0.00019984,2]
[359569786,1746131271558,-500.0,0.00019984,2]
[359569787,1746131271586,-500.0,0.00019984,2]
[359569788,1746131271613,-180.28204613,0.00019984,2]
[359569805,1746131431906,-587.7454346,0.00019843,2]
[359569806,1746131431939,-18.64901421,0.00019843,2]
[359569807,1746131431948,-300.0,0.00019899,2]
[359569808,1746131431957,-1200.0,0.00019899,2]
[359569809,1746131431966,-300.0,0.00019899,2]
[359569810,1746131431976,-209.11098579,0.000199,2]
[359569811,1746131431996,-381.25634205,0.000199,2]
[359569812,1746131432005,-170.17954053,0.000199,2]
[359569813,1746131432014,-1976.67797412,0.000199,2]
[359569814,1746131432023,-178.64661244,0.000199,2]
[359569815,1746131432033,-299.7430997,0.000199,2]
[359569816,1746131432042,-3083.28233382,0.000199,2]
[359569817,1746131432051,-65.07103854,0.00019973,2]
[359570013,1746131437934,-282.6119774,0.000199,2]
[359570041,1746131438671,-416.15963637,0.000199,2]
[359570042,1746131438702,-493.790255,0.000199,2]
[359570043,1746131438828,-579.1851676,0.000199,2]
[359570044,1746131438840,-7676.63267996,0.000199,2]
[359570045,1746131438849,-434.92896146,0.00019973,2]
[359570046,1746131438859,-503.02969115,0.00019973,2]
[359570047,1746131438868,-505.32338764,0.00019973,2]
[359570048,1746131438877,-500.0,0.00019973,2]
[359570049,1746131438886,-553.0106179,0.00019973,2]
[359570050,1746131438895,-500.0,0.00019973,2]
[359570051,1746131438904,-500.0,0.00019982,2]
[359570052,1746131438913,-500.0,0.00019982,2]
[359570053,1746131438922,-500.0,0.00019982,2]
[359570054,1746131438931,-500.0,0.00019982,2]
[359570055,1746131438940,-500.0,0.00019982,2]
[359570056,1746131438950,-500.0,0.00019982,2]
[359570057,1746131438959,-500.0,0.00019982,2]
[359570058,1746131438967,-500.0,0.00019982,2]
[359570059,1746131438979,-500.0,0.00019982,2]
[359570060,1746131438988,-500.0,0.00019982,2]
[359570061,1746131438998,-500.0,0.00019982,2]
[359570062,1746131439007,-495.25946191,0.00019982,2]
[359570066,1746131440043,-4.74053809,0.00019982,2]
[359570067,1746131440053,-500.0,0.00019982,2]
[359570068,1746131440062,-500.0,0.00019982,2]
[359570069,1746131440072,-500.0,0.00019982,2]
[359570070,1746131440081,-500.0,0.00019982,2]
[359570071,1746131440091,-500.0,0.00019982,2]
[359570072,1746131440100,-500.0,0.00019982,2]
[359570073,1746131440109,-500.0,0.00019982,2]
[359570074,1746131440119,-500.0,0.00019982,2]
[359570075,1746131440128,-500.0,0.00019982,2]
[359570076,1746131440137,-500.0,0.00019982,2]
[359570077,1746131440147,-500.0,0.00019982,2]
[359570078,1746131440156,-500.0,0.00019982,2]
[359570079,1746131440165,-500.0,0.00019982,2]
[359570080,1746131440174,-500.0,0.00019982,2]
[359570081,1746131440184,-500.0,0.00019982,2]
[359570082,1746131440193,-500.0,0.00019982,2]
[359570083,1746131440203,-500.0,0.00019982,2]
[359570084,1746131440212,-500.0,0.00019982,2]
[359570085,1746131440223,-549.17118974,0.00019982,2]
[359570086,1746131440233,-500.0,0.00019982,2]
[359570087,1746131440242,-500.0,0.00019982,2]
[359570088,1746131440252,-500.0,0.00019982,2]
[359570089,1746131440261,-500.0,0.00019982,2]
[359570090,1746131440271,-500.0,0.00019982,2]
[359570091,1746131440282,-12687.57842809,0.00019986,2]
[359570092,1746131440378,-301.84,0.00019986,2]
[359570093,1746131440418,-51887.89564241,0.00019986,2]
[359570094,1746131440428,-14180.5575734,0.00019986,2]
[359570095,1746131440438,-5502.9714504,0.00019986,2]
[359570096,1746131440447,-284.8686736,0.00019995,2]
[359570097,1746131440457,-57244.64296285,0.0002,2]
[359570098,1746131440469,-4990.82003339,0.0002,2]
[359570133,1746131445921,-13070.80843007,0.000199,2]
[359570134,1746131445940,-744.21628897,0.000199,2]
[359570135,1746131445950,-337.12721226,0.0002,2]
[359570136,1746131445962,-3900.65469987,0.0002,2]
[359570137,1746131445973,-1361.0,0.0002,2]
[359570141,1746131446426,-1018.44921861,0.0002,2]
[359570150,1746131446521,-557.66955929,0.0002,2]
[359570153,1746131446541,-4727.93209541,0.0002,2]
[359570156,1746131446562,-998.30022193,0.0002,2]
[359570207,1746131548227,-716.24,0.00019768,2]
[359570208,1746131548251,-283.76,0.000199,2]
[359570209,1746131604142,158.04,0.00027425,30]
[359570211,1746131773538,-1200.0,0.00019898,2]
[359570212,1746131773564,-300.0,0.00019898,2]
[359570213,1746131773588,-300.0,0.00019898,2]
[359570214,1746131773619,-500.0,0.00019899,2]
[359570215,1746131773648,-500.0,0.00019899,2]
[359570216,1746131773677,-500.0,0.00019899,2]
[359570217,1746131773708,-500.0,0.00019899,2]
[359570218,1746131773738,-500.0,0.00019899,2]
[359570219,1746131773769,-500.0,0.00019899,2]
[359570220,1746131773800,-500.0,0.00019899,2]
[359570221,1746131773828,-500.0,0.00019899,2]
[359570222,1746131773856,-500.0,0.00019899,2]
[359570223,1746131773891,-500.0,0.00019899,2]
[359570224,1746131773919,-500.0,0.00019899,2]
[359570225,1746131773948,-500.0,0.00019899,2]
[359570226,1746131773978,-500.0,0.00019899,2]
[359570227,1746131774007,-500.0,0.00019899,2]
[359570228,1746131774039,-500.0,0.00019899,2]
[359570229,1746131774067,-500.0,0.00019899,2]
[359570230,1746131774097,-500.0,0.00019899,2]
[359570231,1746131774127,-500.0,0.00019899,2]
[359570232,1746131774440,-500.0,0.00019899,2]
[359570233,1746131774470,-500.0,0.00019899,2]
[359570234,1746131774502,-500.0,0.00019899,2]
[359570235,1746131774531,-500.0,0.00019899,2]
[359570236,1746131774560,-500.0,0.00019899,2]
[359570237,1746131774588,-500.0,0.00019899,2]
[359570238,1746131774616,-500.0,0.00019899,2]
[359570239,1746131774644,-500.0,0.00019899,2]
[359570240,1746131774673,-500.0,0.00019899,2]
[359570241,1746131774703,-500.0,0.00019899,2]
[359570242,1746131774733,-592.66327745,0.00019899,2]
[359570243,1746131774762,-500.0,0.00019899,2]
[359570244,1746131774792,-500.0,0.00019899,2]
[359570245,1746131774821,-500.0,0.00019899,2]
[359570246,1746131774849,-500.0,0.00019899,2]
[359570247,1746131774878,-500.0,0.00019899,2]
[359570248,1746131774908,-500.0,0.00019899,2]
[359570249,1746131774937,-500.0,0.00019899,2]
[359570250,1746131774968,-500.0,0.00019899,2]
[359570251,1746131774998,-500.0,0.00019899,2]
[359570252,1746131775028,-500.0,0.00019899,2]
[359570253,1746131775058,-500.0,0.00019899,2]
[359570254,1746131775087,-600.0,0.00019899,2]
[359570255,1746131775110,-29340.3319,0.000199,2]
[359570256,1746131775133,-1319.9148,0.000199,2]
[359570257,1746131775157,-10085.6110917,0.000199,2]
[359570258,1746131775182,-4637.6045,0.000199,2]
[359570259,1746131775205,-506.02913814,0.000199,2]
[359570260,1746131775230,-11893.518,0.000199,2]
[359570261,1746131775256,-9210.01647936,0.000199,2]
[359570262,1746131775281,-178.64661244,0.000199,2]
[359570263,1746131775304,-6667.99907103,0.00019972,2]
[359570264,1746131775327,-500.0,0.00019973,2]
[359570265,1746131775350,-500.0,0.00019973,2]
[359570266,1746131775373,-500.0,0.00019973,2]
[359570267,1746131775395,-500.0,0.00019973,2]
[359570268,1746131775419,-157.23737719,0.00019973,2]
[359570269,1746131775443,-500.0,0.00019973,2]
[359570270,1746131775465,-164.94585598,0.00019973,2]
[359570271,1746131775489,-67514.5768875,0.00019986,2]
[359570272,1746131775513,-3330.90500921,0.00019986,2]
[359570273,1746131858754,-1317.78531608,0.000199,2]
[359570274,1746131858780,-199.82873312,0.000199,2]
[359570275,1746131858805,-170.17954058,0.000199,2]
[359570276,1746131858830,-6140.01098624,0.000199,2]
[359570277,1746131858854,-2055.52155588,0.000199,2]
[359570278,1746131858880,-500.0,0.00019973,2]
[359570279,1746131858905,-314.52827151,0.00019973,2]
[359570280,1746131858929,-11537.49381909,0.00019986,2]
[359570281,1746131858954,-860.3676538,0.00019986,2]
[359570282,1746131858979,-4663.4905246,0.00019986,2]
[359570283,1746131859002,-1224.6011992,0.00019986,2]
[359570284,1746131859026,-300.0,0.00019999,2]
[359570285,1746131859050,-195.8848633,0.00019999,2]
[359570286,1746131859080,-500.0,0.00019999,2]
[359570287,1746131859108,-500.0,0.00019999,2]
[359570288,1746131859138,-500.0,0.00019999,2]
[359570289,1746131859168,-269.26632774,0.00019999,2]
[359570290,1746131859192,-218751.04120886,0.0002,2]
[359570291,1746131914795,166.78,0.00017302,2]
[359570292,1746132398574,250.0,0.00017,2]
[359570293,1746132400581,300.0,0.00019,2]
[359570294,1746132407471,680.42,0.00018461,2]
[359570298,1746132632511,-196.58514753,0.00019898,2]
[359570299,1746132632521,-1200.0,0.00019898,2]
[359570300,1746132632531,-300.0,0.00019898,2]
[359570301,1746132632541,-20472.43278386,0.00019899,2]
[359570302,1746132632553,-23612.7014328,0.00019899,2]
[359570303,1746132632566,-934.33,0.00019899,2]
[359570304,1746132632578,-1753.63699398,0.00019899,2]
[359570305,1746132632587,-170.87582738,0.000199,2]
[359570306,1746132632597,-202.7476074,0.000199,2]
[359570307,1746132632606,-1589.6522,0.000199,2]
[359570308,1746132632616,-244.1731488,0.000199,2]
[359570309,1746132632627,-2871.87136487,0.000199,2]
[359570310,1746132632643,-319.0,0.000199,2]
[359570311,1746132632656,-877.85875134,0.000199,2]
[359570312,1746132632683,-24.61054129,0.000199,2]
[359570313,1746132632692,-199.82873312,0.000199,2]
[359570314,1746132632702,-170.17954053,0.000199,2]
[359570315,1746132632712,-812.99765711,0.000199,2]
[359570316,1746132632724,-65.52588695,0.000199,2]
[359570317,1746132632734,-433.73926128,0.000199,2]
[359570318,1746132632743,-1370.34770392,0.000199,2]
[359570319,1746132632754,-509.40104996,0.00019973,2]
[359570320,1746132632763,-472.5003982,0.00019973,2]
[359570321,1746132632773,-461.02609329,0.00019973,2]
[359570322,1746132632782,-500.0,0.00019973,2]
[359570323,1746132632792,-213.2,0.00019975,2]
[359570324,1746132632802,-914.5881032,0.00019986,2]
[359570325,1746132632811,-4957.38413,0.00019986,2]
[359570326,1746132632820,-1143.7778607,0.00019986,2]
[359570327,1746132632830,-34308.7665135,0.00019986,2]
[359570328,1746132632839,-11836.39420772,0.00019986,2]
[359570329,1746132632851,-55959.65594748,0.00019986,2]
[359570330,1746132632860,-292.61958378,0.0001999,2]
[359570331,1746132632870,-292.61958378,0.0001999,2]
[359570332,1746132632879,-292.61958378,0.0001999,2]
[359570333,1746132632889,-150.0,0.00019999,2]
[359570334,1746132632899,-841.2101226,0.00019999,2]
[359570335,1746132632908,-42683.17290739,0.0002,2]
[359570518,1746132638088,-60584.67076801,0.0002,2]
[359570520,1746132638099,-7342.57998496,0.0002,2]
[359570522,1746132638110,-11157.38489646,0.0002,2]
[359570526,1746132638143,-1533542.24076328,0.0002,2]
[359570528,1746132638153,-249428.125773,0.0002,2]
[359570530,1746132638162,-1395.86806588,0.0002,2]
[359570532,1746132638172,-20162.24698028,0.0002,2]
[359570534,1746132638181,-500.0,0.0002,2]
[359570536,1746132638190,-2551709.25035566,0.0002,2]
[359570539,1746132638206,-1042.82955653,0.0002,2]
[359570746,1746132640273,-1234.69500997,0.0002,2]
[359570748,1746132640285,-925.2436,0.0002,2]
[359570778,1746132640571,-2881.1945751,0.0002,2]
[359570857,1746132641321,-30338.3886057,0.0002,2]
[359570859,1746132641335,-8733.26529153,0.0002,2]
[359570991,1746132643243,-244257.14511145,0.0002,2]
[359570992,1746132643255,-141313.53040444,0.0002,2]
[359570995,1746132644625,-1912.0,0.0002,2]
[359570996,1746132646071,-5736.0,0.0002,2]
[359570997,1746132646122,-12824.39934171,0.0002,2]
[359570998,1746132646133,-26293.6568117,0.0002,2]
[359570999,1746132646177,-531.1240178,0.0002,2]
[359571000,1746132646414,-13.42666019,0.0002,2]
[359571029,1746132732785,-290.90456794,0.000199,2]
[359571030,1746132740438,-165.85006296,0.00019937,2]
[359571031,1746132744769,-84.14993704,0.00019937,2]
[359571032,1746132744792,-109.97006296,0.00019937,2]
[359571034,1746133009965,176.73,0.00015936,2]
[359571035,1746133065709,158.04,0.00027425,30]
[359571036,1746133104479,529.31475431,0.00018,2]
[359571037,1746133218550,165.8694113,0.0003,30]
[359571038,1746133259050,-256.733132,0.00019355,2]
[359571039,1746133259284,-1000.0,0.00019452,2]
[359571040,1746133259306,-200.0,0.00019475,2]
[359571041,1746133259326,-690.59711909,0.00019478,2]
[359571042,1746133259348,-485.83,0.00019525,2]
[359571043,1746133259369,-1037.2,0.00019606,2]
[359571044,1746133259389,-200.0,0.00019631,2]
[359571045,1746133259410,-1404.27,0.00019693,2]
[359571046,1746133259431,-200.0,0.00019731,2]
[359571047,1746133259452,-690.59711909,0.00019738,2]
[359571048,1746133259475,-300.0,0.00019899,2]
[359571049,1746133259498,-1200.0,0.000199,2]
[359571050,1746133259518,-300.0,0.000199,2]
[359571051,1746133259539,-371.77650966,0.000199,2]
[359571052,1746133259562,-432.72,0.00019902,2]
[359571053,1746133259584,-23900.0,0.00019902,2]
[359571054,1746133259606,-1441.2,0.0001992,2]
[359571055,1746133259629,-200.0,0.00019963,2]
[359571056,1746133259889,-200.0,0.00019978,2]
[359571057,1746133259927,-4226.9543671,0.00019986,2]
[359571058,1746133259949,-76408.1310461,0.00019986,2]
[359571059,1746133259970,-1532.7327109,0.00019986,2]
[359571060,1746133259993,-171.1681045,0.00019999,2]
[359571061,1746133260015,-545.0,0.0002,2]
[359571062,1746133260040,-194861.82302356,0.0002,2]
[359571063,1746133287288,-187.11466007,0.000199,2]
[359571064,1746133287316,-500.0,0.00019901,2]
[359571065,1746133287337,-300.0,0.00019985,2]
[359571066,1746133287360,-463.02109051,0.00019999,2]
[359571067,1746133287384,-358549.86424942,0.0002,2]
[359571068,1746133319647,-225.85984463,0.00019901,2]
[359571069,1746133319670,-476774.14015537,0.0002,2]
[359571070,1746133377951,-170.17954053,0.000199,2]
[359571071,1746133377976,-170.87582737,0.000199,2]
[359571072,1746133377998,-200.0,0.00019951,2]
[359571073,1746133378019,-207.4,0.00019953,2]
[359571074,1746133378250,-151.0,0.00019954,2]
[359571075,1746133378271,-279.17166787,0.00019954,2]
[359571076,1746133378295,-5332.150545,0.00019986,2]
[359571077,1746133378318,-164489.22241923,0.0002,2]
[359571078,1746133648920,404.91942624,0.000328,60]
[359571079,1746133703509,-698.22,0.00019848,2]
[359571080,1746133703530,-250.0,0.00019874,2]
[359571081,1746133703551,-200.0,0.00019874,2]
[359571082,1746133703572,-203.83315683,0.000199,2]
[359571083,1746133703593,-367.07695946,0.000199,2]
[359571084,1746133703615,-170.17954053,0.000199,2]
[359571085,1746133703637,-311.2197948,0.000199,2]
[359571086,1746133703658,-200.0,0.00019932,2]
[359571087,1746133703679,-207.4,0.00019953,2]
[359571088,1746133703700,-392.07054838,0.00019973,2]
[359571089,1746133715237,-107.92945162,0.00019973,2]
[359571090,1746133715260,-1200.0,0.00019985,2]
[359571091,1746133715283,-270.0,0.00019985,2]
[359571092,1746133715312,-122.07054838,0.00019986,2]
[359571093,1746133723785,-2000.0,0.00019986,2]
[359571094,1746133731817,-2000.0,0.00019986,2]
[359571095,1746133739150,-2000.0,0.00019986,2]
[359571096,1746133746513,-300.0,0.00019985,2]
[359571097,1746133746536,-1700.0,0.00019986,2]
[359571106,1746133753331,-2000.0,0.00019986,2]
[359571108,1746133759362,-2000.0,0.00019986,2]
[359571109,1746133765768,-2000.0,0.00019986,2]
[359571110,1746133772010,-2000.0,0.00019986,2]
[359571111,1746133777404,-2000.0,0.00019986,2]
[359571112,1746133785604,-728.7034498,0.00019986,2]
[359571113,1746133785628,-1271.2965502,0.00019986,2]
[359571114,1746133791560,-2000.0,0.00019986,2]
[359571115,1746133797366,-2000.0,0.00019986,2]
[359571116,1746133806386,-1200.0,0.00019985,2]
[359571117,1746133806410,-300.0,0.00019985,2]
[359571118,1746133806432,-500.0,0.00019986,2]
[359571119,1746133812511,-2000.0,0.00019986,2]
[359571121,1746133818466,-170.17954053,0.000199,2]
[359571122,1746133818489,-1829.82045947,0.00019986,2]
[359571123,1746133825200,-2000.0,0.00019986,2]
[359571126,1746133832186,-233.74870972,0.000199,2]
[359571127,1746133832196,-1566.25129029,0.00019986,2]
[359571194,1746133838482,-481.84379586,0.00019986,2]
[359571196,1746133838494,-28619.62241308,0.00019986,2]
[359571199,1746133838504,-4449.2266837,0.00019986,2]
[359571200,1746133838513,-1349.9449546,0.00019986,2]
[359571202,1746133838523,-26971.7795929,0.00019986,2]
[359571204,1746133838532,-551.2628369,0.00019986,2]
[359571206,1746133838542,-200.0,0.0001999,2]
[359571208,1746133838551,-1982217.9095003,0.0002,2]
[359571210,1746133838561,-606109.67206509,0.0002,2]
[359571212,1746133838570,-273.5153022,0.0002,2]